bitfinex/quotes_SOLUSD_20240612
["timestamp","ask_amount","ask_price","bid_price","bid_amount"]
[1718223939377,143.8,153.91,153.85,4.0]
[1718223939576,100.0,153.89,153.83,4.0]
[1718223940508,39.48,153.88,153.83,4.0]
[1718223940810,100.0,153.87,153.83,4.0]
[1718223941306,20.0,153.86,153.83,4.0]
[1718223941485,0.51,153.85,153.83,4.0]
[1718223941688,20.0,153.86,153.83,4.0]
[1718223941980,105.25824834,153.95,153.88,4.0]
[1718223942294,224.32,153.95,153.88,4.0]
[1718223942905,243.8,153.95,153.88,4.0]
[1718223943279,100.0,153.93,153.88,4.0]
[1718223943479,0.17,153.92,153.88,4.0]
[1718223943691,24.32,153.95,153.88,4.0]
[1718223944406,24.32,153.95,153.9,4.0]
[1718223945105,45.68,153.94,153.9,4.0]
[1718223945290,0.17,153.92,153.9,4.0]
[1718223945484,0.68,153.92,153.9,4.0]
[1718223946518,0.17,153.92,153.9,4.0]
[1718223948080,20.0,153.96,153.92,4.0]
[1718223948280,0.17,153.95,153.92,4.0]
[1718223948604,0.17,153.96,153.92,4.0]
[1718223948914,45.17,153.97,153.94,4.0]
[1718223949285,24.32,153.98,153.94,4.0]
[1718223949474,119.48,154.0,153.92,4.0]
[1718223949686,219.48,154.0,153.92,4.0]
[1718223950616,0.17,153.97,153.92,4.0]
[1718223950811,65.16,153.97,153.92,4.0]
[1718223951128,0.17,153.95,153.92,4.0]
[1718223951286,0.68,153.95,153.92,4.0]
[1718223951487,100.0,153.94,153.89,4.0]
[1718223951714,0.68,153.93,153.89,4.0]
[1718223952032,65.68,153.93,153.89,4.0]
[1718223957622,20.68,153.93,153.89,4.0]
[1718223957918,20.0,153.94,153.91,4.0]
[1718223958129,20.0,153.97,153.93,4.0]
[1718223958300,20.0,153.97,153.91,4.0]
[1718223958496,20.0,153.97,153.93,4.0]
[1718223960520,0.68,153.96,153.93,4.0]
[1718223960911,20.0,153.98,153.95,4.0]
[1718223961117,20.0,153.99,153.95,4.0]
[1718223962023,20.0,153.99,153.93,4.0]
[1718223962327,0.68,153.98,153.93,4.0]
[1718223963008,0.68,153.98,153.95,4.0]
[1718223970920,0.17,153.96,153.92,4.0]
[1718223971229,200.17,153.93,153.92,4.0]
[1718223971415,220.68,153.93,153.92,4.0]
[1718223971735,265.68,153.93,153.92,4.0]
[1718223971911,0.17,153.92,153.89,4.0]
[1718223972108,20.68,153.92,153.89,4.0]
[1718223972334,0.17,153.92,153.91,4.0]
[1718223972825,20.0,153.96,153.93,4.0]
[1718223973025,0.51,153.95,153.93,4.0]
[1718223973233,43.83,154.0,153.93,4.0]
[1718223973411,43.83,154.0,153.95,4.0]
[1718223974439,0.34,153.99,153.95,4.0]
[1718223974734,24.32,154.0,153.95,4.0]
[1718223974922,100.0,154.01,153.97,4.0]
[1718223975237,20.0,154.0,153.97,4.0]
[1718223975437,20.0,154.02,153.97,4.0]
[1718223975933,39.51,154.02,153.97,4.0]
[1718223976119,0.17,154.0,153.97,4.0]
[1718223976332,20.17,154.0,153.97,4.0]
[1718223976515,0.17,153.98,153.97,4.0]
[1718223978143,20.17,153.98,153.95,4.0]
[1718223978316,0.17,153.96,153.95,4.0]
[1718223980019,20.17,153.96,153.95,4.0]
[1718223980232,65.68,153.96,153.95,4.0]
[1718223980623,45.68,153.96,153.95,4.0]
[1718223980826,0.68,153.96,153.95,4.0]
[1718223984038,24.32,154.0,153.97,4.0]
[1718223984258,100.0,154.01,153.97,4.0]
[1718223984948,119.51,154.01,153.97,4.0]
[1718223985261,219.51,154.01,153.95,4.0]
[1718223985555,100.17,153.99,153.95,4.0]
[1718223985765,0.17,153.97,153.95,4.0]
[1718223989760,100.17,153.97,153.95,4.0]
[1718223990041,45.68,153.96,153.95,4.0]
[1718223990857,53.79,153.96,153.95,4.0]
[1718223993767,0.17,153.94,153.91,4.0]
[1718223993976,0.68,153.94,153.91,4.0]
[1718223994147,8.11,153.92,153.91,4.0]
[1718223994379,8.62,153.92,153.91,4.0]
[1718223995265,8.11,153.93,153.91,4.0]
[1718223995563,8.45,153.94,153.93,4.0]
[1718223995758,8.79,153.94,153.93,4.0]
[1718223995962,0.17,153.94,153.93,4.0]
[1718223996158,8.11,153.96,153.93,4.0]
[1718223996369,0.17,153.95,153.93,4.0]
[1718223998164,8.28,153.95,153.93,4.0]
[1718223998369,0.17,153.94,153.93,4.0]
[1718223998570,8.62,153.94,153.93,4.0]
[1718223998745,8.79,153.94,153.93,4.0]
[1718224003162,8.45,153.94,153.93,4.0]
[1718224003359,8.28,153.94,153.93,4.0]
[1718224003561,8.62,153.94,153.93,4.0]
[1718224003875,8.79,153.94,153.93,4.0]
[1718224010147,8.79,153.94,153.91,4.0]
[1718224010148,0.17,153.93,153.91,4.0]
[1718224010473,8.28,153.92,153.91,4.0]
[1718224010661,8.62,153.92,153.91,4.0]
[1718224011173,8.79,153.92,153.91,4.0]
[1718224016574,0.51,153.92,153.91,4.0]
[1718224016881,100.0,153.97,153.93,4.0]
[1718224017058,8.11,153.94,153.93,4.0]
[1718224017252,6.2594,154.0,153.95,4.0]
[1718224017464,32.44,154.0,153.97,4.0]
[1718224017667,8.11,153.98,153.97,4.0]
[1718224018468,19.51,154.0,153.97,4.0]
[1718224018773,8.11,153.98,153.97,4.0]
[1718224018972,32.44,154.0,153.97,4.0]
[1718224019165,13.27944824,154.02,153.97,4.0]
[1718224019363,8.11,153.98,153.97,4.0]
[1718224020378,8.28,153.98,153.97,4.0]
[1718224020580,8.79,153.98,153.97,4.0]
[1718224022281,0.68,153.98,153.97,4.0]
[1718224022480,8.11,153.98,153.97,4.0]
[1718224022678,100.0,154.05,154.01,4.0]
[1718224022879,8.11,154.02,154.01,4.0]
[1718224023892,8.79,154.02,154.01,4.0]
[1718224024175,100.17,154.01,153.97,4.0]
[1718224024375,8.11,153.98,153.97,4.0]
[1718224024595,8.28,153.98,153.97,4.0]
[1718224025367,0.17,153.98,153.97,4.0]
[1718224025773,8.28,153.98,153.97,4.0]
[1718224026004,8.11,153.99,153.97,4.0]
[1718224027001,8.11,154.01,153.99,4.0]
[1718224030595,8.11,154.0,153.99,4.0]
[1718224031197,8.28,154.0,153.99,4.0]
[1718224031491,8.62,154.0,153.99,4.0]
[1718224031697,8.79,154.0,153.99,4.0]
[1718224033998,0.68,154.0,153.99,4.0]
[1718224034304,8.79,154.0,153.99,4.0]
[1718224036009,53.79,154.0,153.99,4.0]
[1718224036712,8.79,154.0,153.99,4.0]
[1718224038316,6.29,154.0,153.99,4.0]
[1718224040627,6.46,154.0,153.99,4.0]
[1718224040925,200.0,153.96,153.92,16.3113]
[1718224041128,8.11,153.93,153.91,4.0]
[1718224042401,0.51,153.95,153.88,23.1134]
[1718224042402,0.34,153.95,153.94,4.0]
[1718224042603,8.28,153.95,153.94,4.0]
[1718224043716,8.62,153.95,153.94,4.0]
[1718224044626,0.51,153.95,153.94,4.0]
[1718224045008,8.62,153.95,153.94,4.0]
[1718224045628,8.79,153.95,153.94,4.0]
[1718224055721,53.79,153.95,153.94,4.0]
[1718224056223,45.68,153.95,153.94,4.0]
[1718224056429,53.79,153.95,153.94,4.0]
[1718224057127,0.17,153.94,153.92,4.0]
[1718224057327,8.28,153.93,153.92,4.0]
[1718224057527,8.79,153.93,153.92,4.0]
[1718224058233,16.9,153.93,153.92,4.0]
[1718224059455,8.79,153.93,153.92,4.0]
[1718224059955,16.9,153.93,153.92,4.0]
[1718224060834,61.9,153.93,153.92,4.0]
[1718224061226,45.68,153.93,153.92,4.0]
[1718224061444,41.23,153.93,153.92,4.0]
[1718224061749,8.79,153.93,153.92,4.0]
[1718224063650,16.9,153.93,153.92,4.0]
[1718224063830,81.9,153.93,153.92,4.0]
[1718224064030,106.23,153.93,153.92,4.0]
[1718224066250,65.68,153.93,153.92,4.0]
[1718224066436,28.79,153.93,153.92,4.0]
[1718224071474,6.18919687,153.99,153.96,4.0]
[1718224071644,8.11,153.97,153.96,4.0]
[1718224072353,208.11,153.97,153.96,4.0]
[1718224072956,253.79,153.97,153.96,4.0]
[1718224073346,153.79,153.97,153.96,4.0]
[1718224074965,173.3,153.97,153.96,4.0]
[1718224075177,0.17,153.96,153.88,16.5454]
[1718224075347,8.11,153.9,153.88,16.5454]
[1718224077849,0.68,153.96,153.88,16.5454]
[1718224078058,8.11,153.92,153.88,16.5454]
[1718224078352,0.68,153.96,153.88,16.5454]
[1718224078548,8.11,153.92,153.88,16.5454]
[1718224079147,8.11,153.91,153.88,16.5454]
[1718224081460,125.69919687,153.99,153.88,16.5454]
[1718224081461,8.11,153.93,153.88,24.6554]
[1718224081793,8.11,153.93,153.88,16.5454]
[1718224082282,129.09188594,154.0,153.88,16.5454]
[1718224082448,8.11,153.95,153.89,8.11]
[1718224082768,161.53188594,154.0,153.89,8.11]
[1718224082962,8.11,153.95,153.89,8.11]
[1718224083479,8.11,153.94,153.89,8.11]
[1718224083667,161.53188594,154.0,153.89,8.11]
[1718224083978,8.11,153.94,153.89,8.11]
[1718224084194,259.6,154.02,153.92,2.4037]
[1718224084354,8.11,154.0,153.94,8.11]
[1718224084859,8.11,154.0,153.92,20.0]
[1718224084860,8.11,153.99,153.93,8.11]
[1718224086264,8.11,153.99,153.92,20.0]
[1718224086467,8.11,153.99,153.93,8.11]
[1718224086776,259.6,154.02,153.93,8.11]
[1718224086979,8.11,153.99,153.93,8.11]
[1718224087488,0.34,154.03,153.94,16.4917]
[1718224087787,8.11,154.01,153.95,8.11]
[1718224088087,8.11,154.0,153.95,8.11]
[1718224088672,0.17,154.04,153.94,22.968]
[1718224088986,8.11,153.98,153.94,22.968]
[1718224091190,0.17,154.03,153.94,22.968]
[1718224091382,8.11,153.98,153.94,22.968]
[1718224091696,0.34,154.03,153.94,22.968]
[1718224091875,8.11,153.99,153.94,31.078]
[1718224092985,8.11,153.99,153.94,22.968]
[1718224093697,0.34,154.03,153.94,22.968]
[1718224093882,8.11,153.98,153.94,22.968]
[1718224094587,0.34,154.03,153.94,22.968]
[1718224094794,8.11,153.98,153.94,22.968]
[1718224095578,8.11,153.97,153.94,22.968]
[1718224095779,8.11,153.95,153.94,16.4917]
[1718224097194,8.11,153.95,153.9,21.5701]
[1718224097504,8.11,153.93,153.9,21.5701]
[1718224098702,8.11,153.94,153.9,21.5701]
[1718224098902,5.61,153.94,153.9,21.5701]
[1718224099714,8.11,153.94,153.9,21.5701]
[1718224099925,8.11,153.95,153.9,21.5701]
[1718224100580,20.0,154.04,153.92,2.5737]
[1718224100779,120.0,154.05,153.94,8.11]
[1718224101194,8.11,153.99,153.94,8.11]
[1718224101395,15.596,154.06,153.94,8.11]
[1718224101583,35.106,154.06,153.94,8.11]
[1718224101790,8.11,154.0,153.94,8.11]
[1718224102703,8.11,154.0,153.92,2.5737]
[1718224102902,8.11,153.99,153.94,8.11]
[1718224103217,8.11,153.99,153.92,22.5737]
[1718224103381,8.11,153.99,153.94,8.11]
[1718224107029,0.17,154.04,153.94,8.11]
[1718224107308,8.11,153.99,153.94,8.11]
[1718224107809,8.11,154.0,153.94,8.11]
[1718224108927,8.11,153.99,153.91,16.3166]
[1718224109218,8.11,153.96,153.91,16.3166]
[1718224109917,8.11,153.95,153.91,16.3166]
[1718224110414,106.4289,154.03,153.91,24.4266]
[1718224110597,122.31800784,154.06,153.92,2.4038]
[1718224110801,8.11,153.99,153.94,8.11]
[1718224111008,8.11,153.99,153.91,18.8905]
[1718224111009,8.11,153.99,153.93,8.11]
[1718224111601,8.11,153.99,153.91,16.3166]
[1718224111907,100.0,154.04,153.92,2.5737]
[1718224112112,8.11,154.0,153.94,8.11]
[1718224112717,8.11,153.99,153.93,8.11]
[1718224114096,0.17,154.05,153.93,8.11]
[1718224114392,8.11,153.99,153.94,8.11]
[1718224116723,45.51,154.05,153.95,24.5994]
[1718224117023,15.596,154.06,153.97,8.11]
[1718224117199,8.11,154.02,153.97,8.11]
[1718224117797,259.6,154.09,153.96,6.4289]
[1718224117999,259.6,154.09,154.0,8.11]
[1718224118216,16.6159,154.1,154.01,15.4053]
[1718224118217,8.11,154.04,154.01,15.4053]
[1718224118809,8.11,154.03,154.01,15.4053]
[1718224119549,8.11,154.03,153.94,16.0029]
[1718224119827,20.0,154.02,153.94,24.1129]
[1718224120031,8.11,154.0,153.94,24.1129]
[1718224120536,8.11,153.99,153.94,24.1129]
[1718224120906,8.11,153.99,153.94,16.0029]
[1718224121422,0.17,154.05,153.94,16.0029]
[1718224121608,8.11,153.99,153.94,16.0029]
[1718224121806,100.0,154.04,153.94,16.0029]
[1718224122110,8.11,153.98,153.94,16.0029]
[1718224123948,8.11,153.96,153.94,16.0029]
[1718224125321,32.44,154.0,153.94,16.0029]
[1718224126629,0.17,153.99,153.94,16.0029]
[1718224126925,8.11,153.95,153.94,16.0029]
[1718224130614,0.17,153.99,153.94,16.0029]
[1718224130920,20.0,154.0,153.94,16.0029]
[1718224131122,8.11,153.95,153.94,16.0029]
[1718224132319,8.11,153.95,153.89,22.0115]
[1718224132547,8.11,153.92,153.89,22.0115]
[1718224133139,8.11,153.92,153.86,8.11]
[1718224133140,8.11,153.92,153.86,15.9275]
[1718224133345,121.8088,153.98,153.86,24.0375]
[1718224133537,8.11,153.92,153.86,24.0375]
[1718224133742,0.17,153.96,153.86,24.0375]
[1718224134046,8.11,153.92,153.87,8.11]
[1718224134615,8.11,153.92,153.86,24.0375]
[1718224135440,8.11,153.89,153.86,15.9275]
[1718224136639,8.11,153.88,153.86,15.9275]
[1718224137345,8.11,153.88,153.81,15.4498]
[1718224137645,8.11,153.86,153.81,23.5598]
[1718224138330,8.11,153.87,153.81,23.5598]
[1718224139337,8.11,153.87,153.81,15.4498]
[1718224139638,8.11,153.87,153.81,23.5598]
[1718224140250,0.17,153.91,153.81,15.4498]
[1718224140547,20.68,153.91,153.81,23.5598]
[1718224140756,8.11,153.87,153.81,23.5598]
[1718224140922,8.11,153.87,153.82,8.11]
[1718224141325,20.68,153.91,153.82,8.11]
[1718224141550,8.11,153.87,153.82,8.11]
[1718224142653,20.68,153.91,153.82,8.11]
[1718224142823,0.68,153.91,153.82,8.11]
[1718224143027,8.11,153.87,153.82,8.11]
[1718224143525,8.11,153.87,153.81,15.4498]
[1718224143728,8.11,153.86,153.81,23.5598]
[1718224144252,8.11,153.86,153.81,15.4498]
[1718224144752,200.0,153.9,153.81,15.4498]
[1718224144938,8.11,153.82,153.81,15.4498]
[1718224145333,8.11,153.82,153.77,28.82927552]
[1718224145642,0.68,153.89,153.77,28.82927552]
[1718224145643,8.11,153.83,153.77,28.82927552]
[1718224145845,22.0342,153.92,153.81,8.11]
[1718224146149,8.11,153.88,153.82,8.11]
[1718224146364,8.11,153.87,153.79,2.4058]
[1718224146530,8.11,153.87,153.81,8.11]
[1718224147130,8.11,153.86,153.8,8.11]
[1718224147327,273.9842,153.92,153.79,8.11]
[1718224147328,8.11,153.85,153.79,8.11]
[1718224147557,219.51,153.9,153.78,6.0945]
[1718224147758,8.11,153.83,153.78,14.2045]
[1718224148329,8.11,153.83,153.78,6.0945]
[1718224148947,100.0,153.88,153.78,14.2045]
[1718224149154,0.17,153.86,153.78,6.0945]
[1718224149366,8.11,153.83,153.78,6.0945]
[1718224149933,8.11,153.82,153.78,6.0945]
[1718224150148,8.11,153.83,153.78,6.0945]
[1718224151940,8.11,153.82,153.78,6.0945]
[1718224152145,8.11,153.83,153.78,6.0945]
[1718224152540,0.17,153.86,153.78,6.0945]
[1718224152852,8.11,153.83,153.78,14.2045]
[1718224153737,8.11,153.83,153.78,6.0945]
[1718224154151,20.51,153.87,153.78,6.0945]
[1718224154467,8.11,153.85,153.79,8.11]
[1718224154841,8.11,153.84,153.79,8.11]
[1718224155383,8.11,153.83,153.78,6.0945]
[1718224155576,8.11,153.82,153.78,6.0945]
[1718224156177,8.11,153.84,153.78,14.2045]
[1718224156681,0.17,153.88,153.79,8.11]
[1718224156851,8.11,153.86,153.8,8.11]
[1718224157543,20.0,153.9,153.79,15.9207]
[1718224157764,54.4742,153.92,153.79,15.9207]
[1718224157765,29.05540784,153.96,153.83,8.11]
[1718224157948,8.11,153.9,153.84,24.0307]
[1718224158649,134.36013906,153.96,153.84,24.0307]
[1718224158950,8.11,153.88,153.84,15.9207]
[1718224159252,32.44,153.92,153.84,15.9207]
[1718224160947,8.11,153.89,153.84,15.9207]
[1718224161689,100.0,154.12,153.94,6.1635]
[1718224161966,100.0,154.19,154.04,8.11]
[1718224162168,100.0,154.19,154.05,69.28374666]
[1718224162355,11.49416208,154.21,154.06,8.11]
[1718224162544,100.0,154.2,154.07,20.0]
[1718224162745,32.44,154.16,154.07,20.0]
[1718224163042,8.11,154.12,154.07,20.0]
[1718224163354,32.44,154.16,154.07,20.0]
[1718224163355,8.11,154.09,154.07,20.0]
[1718224163682,8.11,154.11,154.05,28.11]
[1718224163856,100.0,154.18,154.06,2.4015]
[1718224164046,8.11,154.12,154.05,22.4017]
[1718224164246,8.11,154.12,154.05,2.4017]
[1718224164465,100.0,154.18,154.06,8.11]
[1718224164653,8.11,154.12,154.07,20.0]
[1718224164860,100.0,154.18,154.07,20.0]
[1718224164861,124.27,154.18,154.07,20.0]
[1718224165067,24.27,154.18,154.07,20.0]
[1718224165266,24.27,154.18,154.05,2.4017]
[1718224165656,24.27,154.18,154.06,2.5716]
[1718224165977,6.2382,154.21,154.08,8.9851]
[1718224166172,6.2382,154.21,154.09,20.0]
[1718224166359,216.3025365,154.22,154.09,20.0]
[1718224167263,20.0,154.21,154.09,20.0]
[1718224167464,0.8333365,154.22,154.1,0.34]
[1718224167765,0.8333365,154.22,154.11,0.17]
[1718224168449,0.8333365,154.22,154.09,38.7984]
[1718224168645,0.17,154.21,154.09,38.7984]
[1718224168846,0.68,154.21,154.09,38.7984]
[1718224170764,0.17,154.18,154.09,16.3973]
[1718224170972,45.68,154.18,154.09,16.3973]
[1718224171581,0.68,154.18,154.09,16.3973]
[1718224172365,0.17,154.18,154.09,18.7983]
[1718224172568,0.17,154.21,154.1,0.17]
[1718224172783,0.51,154.21,154.1,20.17]
[1718224172950,0.51,154.21,154.1,22.5709]
[1718224173153,0.51,154.21,154.1,20.17]
[1718224173352,0.17,154.21,154.1,20.0]
[1718224173554,0.34,154.21,154.1,20.0]
[1718224173958,45.34,154.21,154.1,20.0]
[1718224174474,0.34,154.21,154.1,22.401]
[1718224174666,0.34,154.2,154.1,22.401]
[1718224174869,0.17,154.19,154.1,22.401]
[1718224175079,0.17,154.19,154.1,20.0]
[1718224178661,0.51,154.19,154.09,16.3973]
[1718224178901,0.17,154.2,154.1,2.401]
[1718224179187,0.51,154.2,154.1,2.401]
[1718224179383,0.51,154.2,154.09,18.7984]
[1718224179689,0.8333365,154.22,154.13,24.27]
[1718224179861,0.8333365,154.22,154.18,2.3996]
[1718224180184,0.8333365,154.22,154.19,16.6662]
[1718224180358,0.8333365,154.22,154.2,22.3993]
[1718224180757,0.8333365,154.22,154.2,20.0]
[1718224182862,100.0,154.33,154.22,0.17]
[1718224183087,100.0,154.37,154.24,2.3987]
[1718224183288,0.8333365,154.38,154.24,2.3987]
[1718224183289,0.8333365,154.38,154.27,2.3983]
[1718224183968,0.8333365,154.38,154.26,2.3985]
[1718224184170,100.0,154.37,154.24,20.17]
[1718224184359,100.0,154.35,154.24,20.0]
[1718224184572,0.51,154.34,154.24,20.0]
[1718224184773,0.34,154.33,154.24,20.0]
[1718224184969,0.34,154.32,154.22,22.3991]
[1718224185370,0.17,154.31,154.22,20.0]
[1718224185671,0.34,154.31,154.21,6.4272]
[1718224185874,100.51,154.3,154.21,6.4272]
[1718224186072,0.34,154.29,154.21,6.4272]
[1718224186274,0.17,154.27,154.21,6.4272]
[1718224186565,0.34,154.27,154.21,6.4272]
[1718224186765,0.17,154.26,154.21,6.4272]
[1718224186984,0.51,154.26,154.21,6.4272]
[1718224188395,0.51,154.26,154.19,16.6662]
[1718224188764,0.51,154.26,154.16,6.2412]
[1718224189485,0.51,154.26,154.17,20.0]
[1718224189689,0.51,154.26,154.18,2.3996]
[1718224189887,0.51,154.26,154.17,22.3998]
[1718224190201,0.51,154.26,154.17,20.0]
[1718224190371,0.51,154.26,154.17,22.3999]
[1718224192591,0.51,154.26,154.17,20.0]
[1718224192796,20.0,154.3,154.2,2.3993]
[1718224192970,20.0,154.32,154.2,2.3993]
[1718224194070,45.51,154.31,154.19,2.3995]
[1718224194389,19.51,154.33,154.18,0.17]
[1718224194703,119.51,154.27,154.16,6.2412]
[1718224194996,200.0,154.25,154.16,6.2412]
[1718224195399,200.0,154.25,154.14,15.3516]
[1718224195400,100.0,154.23,154.14,15.3516]
[1718224195585,0.34,154.22,154.14,15.3516]
[1718224195781,0.17,154.21,154.14,15.3516]
[1718224195973,0.34,154.22,154.14,15.3516]
[1718224196170,0.17,154.23,154.14,15.3516]
[1718224196481,0.17,154.25,154.14,17.7519]
[1718224196680,0.17,154.25,154.14,15.3516]
[1718224196878,0.17,154.25,154.16,2.4]
[1718224197401,5.07108307,154.29,154.16,2.4]
[1718224197588,51.286,154.34,154.15,20.17]
[1718224197589,106.77010309,154.32,154.17,2.5699]
[1718224197777,200.0,154.32,154.18,2.3997]
[1718224197988,100.0,154.32,154.18,2.3997]
[1718224198295,100.0,154.3,154.17,0.17]
[1718224198477,119.51,154.28,154.15,22.5701]
[1718224198796,219.51,154.28,154.15,22.4001]
[1718224199694,0.17,154.26,154.15,20.0]
[1718224199894,0.34,154.26,154.15,20.0]
[1718224200079,0.17,154.25,154.15,20.0]
[1718224200279,0.34,154.25,154.15,20.0]
[1718224200483,0.17,154.24,154.15,20.0]
[1718224200696,0.51,154.24,154.15,20.0]
[1718224200906,0.17,154.23,154.15,20.0]
[1718224201083,0.34,154.23,154.15,20.0]
[1718224201407,0.34,154.23,154.14,15.3516]
[1718224201713,0.17,154.22,154.14,15.3516]
[1718224202003,0.34,154.22,154.14,15.3516]
[1718224202206,0.34,154.21,154.14,15.3516]
[1718224202887,0.17,154.2,154.12,6.0587]
[1718224203191,0.34,154.21,154.12,6.0587]
[1718224203399,100.17,154.2,154.12,6.0587]
[1718224203716,0.51,154.19,154.12,6.0587]
[1718224204511,100.0,154.23,154.12,6.0587]
[1718224204688,0.34,154.22,154.12,8.4594]
[1718224204889,0.34,154.21,154.12,6.0587]
[1718224205487,0.17,154.2,154.12,6.0587]
[1718224205691,0.34,154.2,154.12,6.0587]
[1718224205995,0.34,154.19,154.12,6.0587]
[1718224208610,0.34,154.18,154.12,6.0587]
[1718224208809,0.34,154.17,154.12,6.0587]
[1718224211210,0.17,154.16,154.1,15.0372]
[1718224211903,0.34,154.17,154.1,15.0372]
[1718224215810,0.34,154.16,154.1,15.0372]
[1718224216110,0.34,154.15,154.1,15.0372]
[1718224217014,0.34,154.15,154.08,6.6389]
[1718224217015,0.17,154.14,154.08,6.6389]
[1718224217195,0.34,154.14,154.08,6.6389]
[1718224217398,0.34,154.13,154.08,6.6389]
[1718224219109,0.34,154.13,154.06,16.5731]
[1718224219110,200.34,154.12,154.06,16.5731]
[1718224219321,219.68,154.1,154.02,15.351]
[1718224219493,0.17,154.07,154.02,15.351]
[1718224219827,0.17,154.05,154.0,6.4742]
[1718224219994,0.68,154.05,154.0,6.4742]
[1718224220705,45.68,154.05,153.98,15.351]
[1718224220906,45.68,154.05,153.96,6.6185]
[1718224221998,100.0,154.04,153.96,6.6185]
[1718224222199,0.68,154.03,153.96,6.6185]
[1718224222399,0.17,154.03,153.96,6.6185]
[1718224222900,0.17,154.04,153.96,6.6185]
[1718224223094,0.51,154.04,153.96,6.6185]
[1718224223293,0.17,154.03,153.96,6.6185]
[1718224225023,0.34,154.04,153.96,6.6185]
[1718224228313,100.34,154.04,153.96,6.6185]
[1718224228520,0.17,154.02,153.94,16.5793]
[1718224228705,120.34,154.02,153.94,16.5793]
[1718224228915,0.34,154.01,153.94,16.5793]
[1718224229116,0.17,154.0,153.94,16.5793]
[1718224229331,0.34,154.0,153.94,16.5793]
[1718224229495,0.17,153.99,153.93,6.3641]
[1718224229914,0.34,153.99,153.9,15.1057]
[1718224230123,0.34,153.98,153.9,15.1057]
[1718224230420,0.34,153.97,153.9,15.1057]
[1718224230904,0.34,153.98,153.9,15.1057]
[1718224231112,0.17,153.98,153.9,15.1057]
[1718224231423,0.34,153.98,153.9,15.1057]
[1718224231600,0.17,153.97,153.9,15.1057]
[1718224232103,0.34,153.98,153.9,15.1057]